[Event "Early-Titled-Tuesday-Blitz-March-19-2024"]
[Site "Chess.com"]
[Date "2024.03.19"]
[Round "1"]
[White "HansOnTwitch"]
[Black "LiadCuba"]
[Result "1-0"]
[WhiteElo "3073"]
[BlackElo "2564"]
[TimeControl "180+1"]
[EndTime "8:07:28 PDT"]
[Termination "HansOnTwitch won on time"]

1. c4 {[%clk 0:02:59]} 1... Nf6 {[%clk 0:02:57.2]} 2. Nc3 {[%clk 0:02:58.3]}
2... c5 {[%clk 0:02:54]} 3. g3 {[%clk 0:02:57.8]} 3... e6 {[%clk 0:02:53.7]} 4.
Nf3 {[%clk 0:02:57]} 4... d5 {[%clk 0:02:52.9]} 5. cxd5 {[%clk 0:02:57.9]} 5...
exd5 {[%clk 0:02:53.6]} 6. d4 {[%clk 0:02:58.5]} 6... Nc6 {[%clk 0:02:52.6]} 7.
Bg2 {[%clk 0:02:57.7]} 7... Be6 {[%clk 0:02:45.1]} 8. O-O {[%clk 0:02:55.7]}
8... cxd4 {[%clk 0:02:38.9]} 9. Nxd4 {[%clk 0:02:55.6]} 9... Bc5 {[%clk
0:02:39.8]} 10. Nb3 {[%clk 0:02:33.4]} 10... Bb6 {[%clk 0:02:37.6]} 11. Na4
{[%clk 0:02:33.4]} 11... O-O {[%clk 0:02:36.1]} 12. Nxb6 {[%clk 0:02:33.1]}
12... axb6 {[%clk 0:02:37]} 13. Be3 {[%clk 0:02:29.6]} 13... Ra6 {[%clk
0:02:26.2]} 14. a3 {[%clk 0:02:19.4]} 14... Na5 {[%clk 0:02:12.2]} 15. Nd4
{[%clk 0:02:18.3]} 15... Nc4 {[%clk 0:02:10.3]} 16. Bc1 {[%clk 0:02:18]} 16...
Qe7 {[%clk 0:02:03.2]} 17. a4 {[%clk 0:02:16.2]} 17... Rfa8 {[%clk 0:01:46.8]}
18. b3 {[%clk 0:02:16]} 18... Nd6 {[%clk 0:01:46.7]} 19. Bb2 {[%clk 0:02:12.8]}
19... Nde4 {[%clk 0:01:43.8]} 20. Rc1 {[%clk 0:02:12.1]} 20... Nc5 {[%clk
0:01:37.1]} 21. Rc3 {[%clk 0:02:09.4]} 21... Nfe4 {[%clk 0:01:34.4]} 22. Re3
{[%clk 0:02:09.3]} 22... Qd7 {[%clk 0:01:25.1]} 23. Nxe6 {[%clk 0:02:06.3]}
23... fxe6 {[%clk 0:01:26]} 24. Qd4 {[%clk 0:01:47.8]} 24... Nf6 {[%clk
0:01:19.4]} 25. Bh3 {[%clk 0:01:45.6]} 25... Re8 {[%clk 0:01:03.3]} 26. Rd1
{[%clk 0:01:45.5]} 26... Qc6 {[%clk 0:00:59.2]} 27. Rc1 {[%clk 0:01:41.4]} 27...
Qd6 {[%clk 0:00:55.5]} 28. Qh4 {[%clk 0:01:40.2]} 28... Ncd7 {[%clk 0:00:38.1]}
29. Rec3 {[%clk 0:00:40]} 29... Raa8 {[%clk 0:00:33.6]} 30. R3c2 {[%clk
0:00:37.5]} 30... b5 {[%clk 0:00:29.2]} 31. axb5 {[%clk 0:00:37.2]} 31... Qb6
{[%clk 0:00:27.8]} 32. Qb4 {[%clk 0:00:36.5]} 32... Ne4 {[%clk 0:00:15.8]} 33.
Bd4 {[%clk 0:00:36.3]} 33... Qd8 {[%clk 0:00:15.9]} 34. Rc7 {[%clk 0:00:34]}
34... Qg5 {[%clk 0:00:11.2]} 35. Be3 {[%clk 0:00:30.1]} 35... Qh5 {[%clk
0:00:09.6]} 36. Bg2 {[%clk 0:00:27.2]} 36... Ndf6 {[%clk 0:00:09.6]} 37. Bf3
{[%clk 0:00:26]} 37... Qg6 {[%clk 0:00:09.2]} 38. Rxb7 {[%clk 0:00:24.3]} 38...
Rac8 {[%clk 0:00:09.3]} 39. Rbc7 {[%clk 0:00:23.8]} 39... Rxc7 {[%clk
0:00:09.4]} 40. Rxc7 {[%clk 0:00:24.7]} 40... Ng5 {[%clk 0:00:09.4]} 41. Bxg5
{[%clk 0:00:24.4]} 41... Qxg5 {[%clk 0:00:10.1]} 42. b6 {[%clk 0:00:25]} 42...
e5 {[%clk 0:00:07.6]} 43. b7 {[%clk 0:00:24.9]} 43... e4 {[%clk 0:00:06.6]} 44.
b8=Q {[%clk 0:00:24.4]} 44... exf3 {[%clk 0:00:06.9]} 45. exf3 {[%clk
0:00:24.8]} 45... Qh5 {[%clk 0:00:04.6]} 46. Qe7 {[%clk 0:00:22.4]} 1-0

[Event "Early-Titled-Tuesday-Blitz-March-19-2024"]
[Site "Chess.com"]
[Date "2024.03.19"]
[Round "1"]
[White "madmax011"]
[Black "ansko1999"]
[Result "1/2-1/2"]
[WhiteElo "2316"]
[BlackElo "2645"]
[TimeControl "180+1"]
[EndTime "8:07:30 PDT"]
[Termination "Game drawn by repetition"]

1. d4 {[%clk 0:03:00.9]} 1... d5 {[%clk 0:02:57.4]} 2. c4 {[%clk 0:02:59.5]}
2... e6 {[%clk 0:02:56.4]} 3. Nc3 {[%clk 0:02:59.4]} 3... c6 {[%clk 0:02:56.1]}
4. e3 {[%clk 0:02:52.1]} 4... Bd6 {[%clk 0:02:54.6]} 5. Bd3 {[%clk 0:02:52.1]}
5... f5 {[%clk 0:02:53.6]} 6. Nf3 {[%clk 0:02:52]} 6... Nf6 {[%clk 0:02:52.4]}
7. Ne5 {[%clk 0:02:46.3]} 7... O-O {[%clk 0:02:49.1]} 8. O-O {[%clk 0:02:41.5]}
8... Nbd7 {[%clk 0:02:37.2]} 9. f4 {[%clk 0:02:35.4]} 9... Ne4 {[%clk
0:02:28.8]} 10. Nb1 {[%clk 0:02:15.2]} 10... Nxe5 {[%clk 0:02:22.1]} 11. fxe5
{[%clk 0:02:14.1]} 11... Be7 {[%clk 0:02:17.7]} 12. Bxe4 {[%clk 0:02:10.8]}
12... fxe4 {[%clk 0:02:09.9]} 13. Rxf8+ {[%clk 0:02:09.8]} 13... Qxf8 {[%clk
0:02:09.9]} 14. Nc3 {[%clk 0:02:10.4]} 14... Bd7 {[%clk 0:02:09.7]} 15. Qe2
{[%clk 0:02:06.8]} 15... Qf5 {[%clk 0:02:01.7]} 16. Bd2 {[%clk 0:02:05.7]} 16...
Rf8 {[%clk 0:02:00.9]} 17. Rf1 {[%clk 0:02:04.5]} 17... Qxf1+ {[%clk 0:01:57.5]}
18. Qxf1 {[%clk 0:02:04.2]} 18... Rxf1+ {[%clk 0:01:58.1]} 19. Kxf1 {[%clk
0:02:05]} 19... Be8 {[%clk 0:01:45.4]} 20. cxd5 {[%clk 0:01:55.8]} 20... cxd5
{[%clk 0:01:44.9]} 21. a3 {[%clk 0:01:47.1]} 21... Kf7 {[%clk 0:01:41]} 22. Na2
{[%clk 0:01:37.4]} 22... Bb5+ {[%clk 0:01:38.5]} 23. Kf2 {[%clk 0:01:35.2]}
23... Bc4 {[%clk 0:01:38.7]} 24. Nb4 {[%clk 0:01:30.2]} 24... Bb3 {[%clk
0:01:34.4]} 25. g4 {[%clk 0:01:02.4]} 25... a5 {[%clk 0:01:31.1]} 26. Nxd5
{[%clk 0:01:02.6]} 26... Bxd5 {[%clk 0:01:19.7]} 27. Bxa5 {[%clk 0:01:02.3]}
27... Bh4+ {[%clk 0:01:15]} 28. Kg2 {[%clk 0:01:01.7]} 28... Ke8 {[%clk
0:01:13.2]} 29. Bb4 {[%clk 0:00:58.4]} 29... Kd7 {[%clk 0:01:12]} 30. Bf8 {[%clk
0:00:56.9]} 30... g6 {[%clk 0:01:09.5]} 31. Kf1 {[%clk 0:00:52.8]} 31... Bc4+
{[%clk 0:01:07.6]} 32. Kg2 {[%clk 0:00:52.5]} 32... Be2 {[%clk 0:01:01.3]} 33.
h3 {[%clk 0:00:38.9]} 33... Bf3+ {[%clk 0:00:55.9]} 34. Kf1 {[%clk 0:00:34.4]}
34... Kc6 {[%clk 0:00:53.5]} 35. a4 {[%clk 0:00:32.2]} 35... Bd1 {[%clk
0:00:49.5]} 36. a5 {[%clk 0:00:30.7]} 36... Kb5 {[%clk 0:00:45.1]} 37. b4 {[%clk
0:00:30.2]} 37... Bf3 {[%clk 0:00:39.2]} 38. Bd6 {[%clk 0:00:27.2]} 38... Kc4
{[%clk 0:00:32.8]} 39. Bf8 {[%clk 0:00:26.8]} 39... h5 {[%clk 0:00:18.6]} 40.
gxh5 {[%clk 0:00:25.2]} 40... gxh5 {[%clk 0:00:18.5]} 41. Bd6 {[%clk 0:00:23.4]}
41... Bg5 {[%clk 0:00:16.7]} 42. Kf2 {[%clk 0:00:22.7]} 42... Bh4+ {[%clk
0:00:17.4]} 43. Kf1 {[%clk 0:00:22.6]} 43... Bg3 {[%clk 0:00:16.4]} 44. Bf8
{[%clk 0:00:19.9]} 44... Bh4 {[%clk 0:00:11.1]} 45. Bd6 {[%clk 0:00:17.1]}
1/2-1/2

[Event "Early-Titled-Tuesday-Blitz-March-19-2024"]
[Site "Chess.com"]
[Date "2024.03.19"]
[Round "1"]
[White "Kislov_Oleg"]
[Black "Grischuk"]
[Result "0-1"]
[WhiteElo "2570"]
[BlackElo "3097"]
[TimeControl "180+1"]
[EndTime "8:07:32 PDT"]
[Termination "Grischuk won by resignation"]

1. e4 {[%clk 0:02:59.1]} 1... e5 {[%clk 0:02:32.2]} 2. Nf3 {[%clk 0:02:58.8]}
2... Nc6 {[%clk 0:02:31.3]} 3. d4 {[%clk 0:02:56.3]} 3... exd4 {[%clk
0:02:30.2]} 4. Nxd4 {[%clk 0:02:57.2]} 4... Qf6 {[%clk 0:02:29.8]} 5. Be3 {[%clk
0:02:54.6]} 5... Bc5 {[%clk 0:02:25.8]} 6. c3 {[%clk 0:02:54.3]} 6... Nge7
{[%clk 0:02:25.7]} 7. Bc4 {[%clk 0:02:53.1]} 7... b6 {[%clk 0:02:24.5]} 8. O-O
{[%clk 0:02:48.1]} 8... Bb7 {[%clk 0:02:24.6]} 9. Nc2 {[%clk 0:02:47.4]} 9...
Ne5 {[%clk 0:02:06.2]} 10. Bb5 {[%clk 0:02:26.7]} 10... Bxe4 {[%clk 0:01:54.3]}
11. Bxc5 {[%clk 0:02:17.1]} 11... bxc5 {[%clk 0:01:55.2]} 12. Re1 {[%clk
0:02:10.4]} 12... Bxc2 {[%clk 0:01:51.5]} 13. Qxc2 {[%clk 0:02:07.4]} 13... O-O
{[%clk 0:01:50.4]} 14. Nd2 {[%clk 0:02:04.7]} 14... d6 {[%clk 0:01:44.5]} 15.
Re2 {[%clk 0:01:55.8]} 15... Rab8 {[%clk 0:01:33.1]} 16. Ba4 {[%clk 0:01:49.4]}
16... Nd5 {[%clk 0:01:25.8]} 17. g3 {[%clk 0:01:32.7]} 17... Nb6 {[%clk
0:01:00.5]} 18. f4 {[%clk 0:01:22.4]} 18... Nec4 {[%clk 0:00:54.1]} 19. Bb3
{[%clk 0:01:08.1]} 19... Nxd2 {[%clk 0:00:52.2]} 20. Qxd2 {[%clk 0:01:08.4]}
20... d5 {[%clk 0:00:47.1]} 21. Rae1 {[%clk 0:00:58.5]} 21... c4 {[%clk
0:00:47.5]} 22. Bc2 {[%clk 0:00:58.6]} 22... c5 {[%clk 0:00:37.5]} 23. Re5
{[%clk 0:00:54.4]} 23... g6 {[%clk 0:00:34.7]} 24. Qf2 {[%clk 0:00:54.2]} 24...
Rbc8 {[%clk 0:00:32.8]} 25. Re7 {[%clk 0:00:52.7]} 25... d4 {[%clk 0:00:31.4]}
26. Rxa7 {[%clk 0:00:48.1]} 26... dxc3 {[%clk 0:00:29]} 27. bxc3 {[%clk
0:00:44.7]} 27... Qxc3 {[%clk 0:00:28.9]} 28. Ree7 {[%clk 0:00:40.2]} 28... Nd5
{[%clk 0:00:27.3]} 29. Red7 {[%clk 0:00:23]} 29... Nf6 {[%clk 0:00:27.3]} 30.
Re7 {[%clk 0:00:21.6]} 30... Nd5 {[%clk 0:00:20.1]} 31. Red7 {[%clk 0:00:21.4]}
31... Nb4 {[%clk 0:00:16.6]} 32. Be4 {[%clk 0:00:20.5]} 32... Rce8 {[%clk
0:00:15.2]} 33. Bf3 {[%clk 0:00:19.1]} 33... Nd3 {[%clk 0:00:15]} 34. Rxd3
{[%clk 0:00:06.7]} 34... cxd3 {[%clk 0:00:15.9]} 35. Bd5 {[%clk 0:00:05.5]}
35... d2 {[%clk 0:00:13.7]} 36. Bb3 {[%clk 0:00:02.9]} 36... Qxb3 {[%clk
0:00:09.5]} 37. axb3 {[%clk 0:00:02.9]} 37... d1=Q+ {[%clk 0:00:09.2]} 38. Kg2
{[%clk 0:00:03.8]} 38... Re2 {[%clk 0:00:09.3]} 0-1

[Event "Early-Titled-Tuesday-Blitz-March-19-2024"]
[Site "Chess.com"]
[Date "2024.03.19"]
[Round "1"]
[White "shimastream"]
[Black "DishonorOnYourCow"]
[Result "1-0"]
[WhiteElo "3018"]
[BlackElo "2552"]
[TimeControl "180+1"]
[EndTime "8:07:34 PDT"]
[Termination "shimastream won on time"]

1. Nf3 {[%clk 0:02:53.8]} 1... Nf6 {[%clk 0:02:58.7]} 2. c4 {[%clk 0:02:52.3]}
2... g6 {[%clk 0:02:55.4]} 3. Nc3 {[%clk 0:02:50.7]} 3... d5 {[%clk 0:02:55]} 4.
cxd5 {[%clk 0:02:48.3]} 4... Nxd5 {[%clk 0:02:55.1]} 5. Qa4+ {[%clk 0:02:47.1]}
5... Bd7 {[%clk 0:02:48.5]} 6. Qh4 {[%clk 0:02:42.4]} 6... Nxc3 {[%clk
0:02:38.4]} 7. bxc3 {[%clk 0:02:42]} 7... Bg7 {[%clk 0:02:31.2]} 8. Rb1 {[%clk
0:02:40.8]} 8... b6 {[%clk 0:02:22.3]} 9. e4 {[%clk 0:02:40.7]} 9... c5 {[%clk
0:02:18.6]} 10. Bc4 {[%clk 0:02:38.9]} 10... e6 {[%clk 0:02:09.5]} 11. Qxd8+
{[%clk 0:02:36.1]} 11... Kxd8 {[%clk 0:02:08.9]} 12. d4 {[%clk 0:02:36.3]} 12...
cxd4 {[%clk 0:02:08.5]} 13. cxd4 {[%clk 0:02:37.2]} 13... Nc6 {[%clk 0:02:06.6]}
14. Bg5+ {[%clk 0:02:29.4]} 14... Ke8 {[%clk 0:01:54.5]} 15. Be3 {[%clk
0:02:23.7]} 15... Na5 {[%clk 0:01:43.3]} 16. Bd3 {[%clk 0:02:23.3]} 16... Rc8
{[%clk 0:01:43]} 17. Ke2 {[%clk 0:02:22]} 17... Ke7 {[%clk 0:01:39.5]} 18. Bg5+
{[%clk 0:02:18.8]} 18... f6 {[%clk 0:01:38]} 19. Bd2 {[%clk 0:02:18.2]} 19...
Nc4 {[%clk 0:01:35]} 20. Bb4+ {[%clk 0:02:18]} 20... Kf7 {[%clk 0:01:34.8]} 21.
Rhc1 {[%clk 0:02:18.1]} 21... b5 {[%clk 0:01:28.7]} 22. Bc5 {[%clk 0:02:17.7]}
22... Rb8 {[%clk 0:00:48.3]} 23. Bxc4 {[%clk 0:00:53.2]} 23... bxc4 {[%clk
0:00:49.2]} 24. Nd2 {[%clk 0:00:53.8]} 24... a6 {[%clk 0:00:27]} 25. Nxc4 {[%clk
0:00:49.1]} 25... Bh6 {[%clk 0:00:21.3]} 26. Ne3 {[%clk 0:00:31.7]} 26... Bb5+
{[%clk 0:00:19.7]} 27. Kf3 {[%clk 0:00:30.6]} 27... Bd3 {[%clk 0:00:18.7]} 28.
Rxb8 {[%clk 0:00:26.8]} 28... Rxb8 {[%clk 0:00:19.6]} 29. Rc3 {[%clk 0:00:27.3]}
29... Bb1 {[%clk 0:00:18.6]} 30. a3 {[%clk 0:00:26.8]} 30... f5 {[%clk
0:00:18.5]} 31. exf5 {[%clk 0:00:14.5]} 31... gxf5 {[%clk 0:00:19.4]} 32. Ke2
{[%clk 0:00:11.6]} 32... Rb2+ {[%clk 0:00:17.5]} 33. Ke1 {[%clk 0:00:12]} 33...
Be4 {[%clk 0:00:15.2]} 34. g3 {[%clk 0:00:10.9]} 34... Ra2 {[%clk 0:00:14.7]}
35. Bb4 {[%clk 0:00:10.9]} 35... Bf3 {[%clk 0:00:14]} 36. Rc7+ {[%clk
0:00:09.7]} 36... Kf6 {[%clk 0:00:12.5]} 37. Bc3 {[%clk 0:00:09]} 37... Kg6
{[%clk 0:00:09.3]} 38. Nc4 {[%clk 0:00:05.8]} 38... Bg5 {[%clk 0:00:04.6]} 39.
Ne5+ {[%clk 0:00:05.5]} 39... Kh5 {[%clk 0:00:02.6]} 40. Nxf3 {[%clk 0:00:06.4]}
40... Bf6 {[%clk 0:00:01.7]} 41. Rc6 {[%clk 0:00:05.8]} 1-0

[Event "Early-Titled-Tuesday-Blitz-March-19-2024"]
[Site "Chess.com"]
[Date "2024.03.19"]
[Round "1"]
[White "Mops_2004"]
[Black "IPAchess"]
[Result "1-0"]
[WhiteElo "2741"]
[BlackElo "2403"]
[TimeControl "180+1"]
[EndTime "8:07:41 PDT"]
[Termination "Mops_2004 won by resignation"]

1. e4 {[%clk 0:03:00.9]} 1... e5 {[%clk 0:02:59.7]} 2. Nf3 {[%clk 0:03:01.1]}
2... Nc6 {[%clk 0:03:00.3]} 3. Bc4 {[%clk 0:03:01.6]} 3... Bc5 {[%clk
0:02:59.9]} 4. d3 {[%clk 0:03:01.7]} 4... Nf6 {[%clk 0:03:00.1]} 5. Nc3 {[%clk
0:03:02.3]} 5... h6 {[%clk 0:02:59.3]} 6. h3 {[%clk 0:03:00.9]} 6... a6 {[%clk
0:02:59.5]} 7. a4 {[%clk 0:02:59.9]} 7... d6 {[%clk 0:02:59.9]} 8. Be3 {[%clk
0:02:59.9]} 8... Bxe3 {[%clk 0:02:57.5]} 9. fxe3 {[%clk 0:02:59.4]} 9... O-O
{[%clk 0:02:58.1]} 10. O-O {[%clk 0:02:58.9]} 10... Be6 {[%clk 0:02:57.9]} 11.
Nd2 {[%clk 0:02:59.1]} 11... Ne7 {[%clk 0:02:54.5]} 12. Rxf6 {[%clk 0:02:52.1]}
12... gxf6 {[%clk 0:02:53.9]} 13. Qh5 {[%clk 0:02:52.7]} 13... Kh7 {[%clk
0:02:52.7]} 14. Rf1 {[%clk 0:02:51.2]} 14... Ng6 {[%clk 0:02:52.4]} 15. Nd5
{[%clk 0:02:42]} 15... Bxd5 {[%clk 0:02:50.7]} 16. exd5 {[%clk 0:02:41.2]} 16...
f5 {[%clk 0:02:06.7]} 17. Rxf5 {[%clk 0:02:40.7]} 17... Qh4 {[%clk 0:01:59.9]}
18. Qf3 {[%clk 0:02:40.6]} 18... Kg7 {[%clk 0:01:55.5]} 19. Ne4 {[%clk
0:02:37.3]} 19... Rae8 {[%clk 0:01:39.6]} 20. Nf6 {[%clk 0:02:33.3]} 20... Re7
{[%clk 0:01:37.2]} 21. g3 {[%clk 0:01:45.7]} 21... Qxh3 {[%clk 0:01:27.5]} 22.
d4 {[%clk 0:01:41.5]} 22... exd4 {[%clk 0:00:46.1]} 23. Bf1 {[%clk 0:01:40.7]}
23... Nh4 {[%clk 0:00:13.5]} 24. Nh5+ {[%clk 0:01:15.5]} 24... Kh7 {[%clk
0:00:13]} 25. Bxh3 {[%clk 0:01:07.2]} 25... Nxf3+ {[%clk 0:00:12.6]} 26. Rxf3
{[%clk 0:01:08.1]} 26... Rxe3 {[%clk 0:00:13]} 27. Bf5+ {[%clk 0:00:53.8]} 27...
Kg8 {[%clk 0:00:12.3]} 28. Rxe3 {[%clk 0:00:54]} 28... dxe3 {[%clk 0:00:12.5]}
29. Kf1 {[%clk 0:00:48.8]} 29... f6 {[%clk 0:00:11.9]} 30. Bg6 {[%clk
0:00:35.4]} 30... Rd8 {[%clk 0:00:10.4]} 31. Ke2 {[%clk 0:00:33.2]} 31... f5
{[%clk 0:00:10.8]} 32. Kxe3 {[%clk 0:00:32.9]} 32... Kf8 {[%clk 0:00:11.1]} 33.
Kf4 {[%clk 0:00:32.7]} 33... Ke7 {[%clk 0:00:11.5]} 34. Bxf5 {[%clk 0:00:29]}
34... Rf8 {[%clk 0:00:10.9]} 35. g4 {[%clk 0:00:29.6]} 35... c6 {[%clk
0:00:10.6]} 36. c4 {[%clk 0:00:23.1]} 36... cxd5 {[%clk 0:00:10.7]} 37. cxd5
{[%clk 0:00:24]} 37... b5 {[%clk 0:00:11.6]} 38. a5 {[%clk 0:00:20.5]} 38... Rb8
{[%clk 0:00:12.2]} 39. b4 {[%clk 0:00:20]} 39... Rb7 {[%clk 0:00:11.6]} 40. Bc8
{[%clk 0:00:19.4]} 40... Ra7 {[%clk 0:00:10.6]} 41. Ng3 {[%clk 0:00:17.6]} 41...
Ra8 {[%clk 0:00:11.1]} 42. Bb7 {[%clk 0:00:16.6]} 42... Ra7 {[%clk 0:00:11.7]}
43. Bc6 {[%clk 0:00:17]} 43... Kf6 {[%clk 0:00:12]} 44. Ne4+ {[%clk 0:00:16.9]}
44... Ke7 {[%clk 0:00:11.9]} 45. Kf5 {[%clk 0:00:17.5]} 45... Rc7 {[%clk
0:00:11.7]} 46. Kg6 {[%clk 0:00:17.1]} 46... Rc8 {[%clk 0:00:12.2]} 47. Kxh6
{[%clk 0:00:17.1]} 47... Kf7 {[%clk 0:00:12.6]} 48. Nxd6+ {[%clk 0:00:13.7]} 1-0

[Event "Early-Titled-Tuesday-Blitz-March-19-2024"]
[Site "Chess.com"]
[Date "2024.03.19"]
[Round "1"]
[White "TitarovVasiliYouTube"]
[Black "Dyadya81"]
[Result "0-1"]
[WhiteElo "2531"]
[BlackElo "2952"]
[TimeControl "180+1"]
[EndTime "8:07:42 PDT"]
[Termination "Dyadya81 won by resignation"]

1. e4 {[%clk 0:03:00.9]} 1... c6 {[%clk 0:02:59.2]} 2. d4 {[%clk 0:02:58.7]}
2... d5 {[%clk 0:02:57.5]} 3. exd5 {[%clk 0:02:59.6]} 3... cxd5 {[%clk
0:02:57.6]} 4. Bd3 {[%clk 0:03:00.1]} 4... Nf6 {[%clk 0:02:57.2]} 5. c3 {[%clk
0:03:00.1]} 5... Bg4 {[%clk 0:02:57.6]} 6. Nf3 {[%clk 0:03:00.3]} 6... Qc7
{[%clk 0:02:55.7]} 7. Be3 {[%clk 0:03:00.3]} 7... Nc6 {[%clk 0:02:55.8]} 8. Nbd2
{[%clk 0:03:00.2]} 8... e6 {[%clk 0:02:56.3]} 9. O-O {[%clk 0:03:00.4]} 9... Bd6
{[%clk 0:02:55.9]} 10. Qc2 {[%clk 0:03:00.6]} 10... O-O {[%clk 0:02:50.5]} 11.
Bg5 {[%clk 0:02:56.6]} 11... Kh8 {[%clk 0:02:38.7]} 12. Bh4 {[%clk 0:02:54.3]}
12... Rac8 {[%clk 0:02:36.7]} 13. a3 {[%clk 0:02:53.8]} 13... Ne7 {[%clk
0:02:30.6]} 14. Bg3 {[%clk 0:02:51.6]} 14... Bf5 {[%clk 0:02:28.5]} 15. Rfe1
{[%clk 0:02:49.8]} 15... Bxd3 {[%clk 0:02:13.9]} 16. Qxd3 {[%clk 0:02:50.7]}
16... Ng6 {[%clk 0:02:13.6]} 17. Bxd6 {[%clk 0:02:50.3]} 17... Qxd6 {[%clk
0:02:13.5]} 18. g3 {[%clk 0:02:40.6]} 18... a6 {[%clk 0:02:11.8]} 19. Ne5 {[%clk
0:02:38.1]} 19... Nd7 {[%clk 0:02:07.9]} 20. f4 {[%clk 0:02:36.3]} 20... Ndxe5
{[%clk 0:02:05.6]} 21. fxe5 {[%clk 0:02:36.1]} 21... Qb6 {[%clk 0:02:06.4]} 22.
Rab1 {[%clk 0:02:27.1]} 22... f5 {[%clk 0:02:05.7]} 23. Nf3 {[%clk 0:02:14]}
23... h6 {[%clk 0:02:03.4]} 24. Kg2 {[%clk 0:02:12.5]} 24... a5 {[%clk
0:01:58.5]} 25. a4 {[%clk 0:01:34.2]} 25... Rc4 {[%clk 0:01:57.3]} 26. b3 {[%clk
0:01:33.2]} 26... Rc7 {[%clk 0:01:57.9]} 27. c4 {[%clk 0:01:30.4]} 27... Ne7
{[%clk 0:01:32.4]} 28. c5 {[%clk 0:01:27.9]} 28... Qc6 {[%clk 0:01:30.2]} 29.
Qb5 {[%clk 0:01:23.7]} 29... Ra8 {[%clk 0:01:06.7]} 30. Ra1 {[%clk 0:01:06.9]}
30... Qd7 {[%clk 0:01:04.8]} 31. h4 {[%clk 0:00:27.9]} 31... Nc6 {[%clk
0:01:02.1]} 32. Qd3 {[%clk 0:00:27.2]} 32... Nb4 {[%clk 0:00:59.3]} 33. Qd2
{[%clk 0:00:25.7]} 33... Qf7 {[%clk 0:00:55.9]} 34. Rac1 {[%clk 0:00:24]} 34...
Qh5 {[%clk 0:00:53.6]} 35. Rc3 {[%clk 0:00:21.2]} 35... Rac8 {[%clk 0:00:51.8]}
36. Qf4 {[%clk 0:00:20.1]} 36... b6 {[%clk 0:00:50]} 37. Qe3 {[%clk 0:00:15.1]}
37... Qg4 {[%clk 0:00:42.2]} 38. Nh2 {[%clk 0:00:10.7]} 38... Qe4+ {[%clk
0:00:42.7]} 39. Qxe4 {[%clk 0:00:11]} 39... dxe4 {[%clk 0:00:43.6]} 40. Nf1
{[%clk 0:00:02.7]} 40... Nd5 {[%clk 0:00:43.5]} 41. Rc2 {[%clk 0:00:01.9]} 41...
bxc5 {[%clk 0:00:44]} 42. Rec1 {[%clk 0:00:01.8]} 42... cxd4 {[%clk 0:00:43]}
43. Rxc7 {[%clk 0:00:02.7]} 43... Rxc7 {[%clk 0:00:43.5]} 44. Rxc7 {[%clk
0:00:03.4]} 44... Nxc7 {[%clk 0:00:44.4]} 45. Nd2 {[%clk 0:00:04.3]} 45... Nd5
{[%clk 0:00:38.7]} 46. Nc4 {[%clk 0:00:04.6]} 46... d3 {[%clk 0:00:35.1]} 47.
Kf2 {[%clk 0:00:04.4]} 47... d2 {[%clk 0:00:32.6]} 48. Ke2 {[%clk 0:00:03.9]}
48... e3 {[%clk 0:00:33.1]} 49. Nxe3 {[%clk 0:00:01.3]} 49... Nxe3 {[%clk
0:00:33.2]} 50. Kxd2 {[%clk 0:00:02.2]} 50... Nd5 {[%clk 0:00:33.2]} 51. Kd3
{[%clk 0:00:02.1]} 51... g5 {[%clk 0:00:33.7]} 52. hxg5 {[%clk 0:00:02.4]} 52...
hxg5 {[%clk 0:00:34]} 53. Kc4 {[%clk 0:00:03.1]} 53... f4 {[%clk 0:00:34]} 54.
gxf4 {[%clk 0:00:04]} 54... gxf4 {[%clk 0:00:34.6]} 0-1

[Event "Early-Titled-Tuesday-Blitz-March-19-2024"]
[Site "Chess.com"]
[Date "2024.03.19"]
[Round "1"]
[White "AsaHoffmann"]
[Black "PeshkaCh"]
[Result "0-1"]
[WhiteElo "2448"]
[BlackElo "2821"]
[TimeControl "180+1"]
[EndTime "8:07:43 PDT"]
[Termination "PeshkaCh won on time"]

1. d4 {[%clk 0:02:57.5]} 1... Nf6 {[%clk 0:02:59.9]} 2. Bg5 {[%clk 0:02:53.5]}
2... Ne4 {[%clk 0:03:00]} 3. Bf4 {[%clk 0:02:53.1]} 3... c5 {[%clk 0:03:00.4]}
4. f3 {[%clk 0:02:53]} 4... Nf6 {[%clk 0:03:01]} 5. dxc5 {[%clk 0:02:52.4]} 5...
Qa5+ {[%clk 0:02:55.4]} 6. Nc3 {[%clk 0:02:51.6]} 6... Qxc5 {[%clk 0:02:52.3]}
7. e4 {[%clk 0:02:51.2]} 7... d6 {[%clk 0:02:50.6]} 8. Qd2 {[%clk 0:02:51.1]}
8... Nc6 {[%clk 0:02:49.3]} 9. Nb5 {[%clk 0:02:50.6]} 9... Qb6 {[%clk 0:02:46]}
10. Be3 {[%clk 0:02:50.3]} 10... Qd8 {[%clk 0:02:45.7]} 11. c4 {[%clk
0:02:50.1]} 11... g6 {[%clk 0:02:43.7]} 12. Be2 {[%clk 0:02:43.8]} 12... Bg7
{[%clk 0:02:44]} 13. O-O-O {[%clk 0:02:37.6]} 13... Be6 {[%clk 0:02:41.9]} 14.
Nd4 {[%clk 0:02:27.9]} 14... Nxd4 {[%clk 0:02:40.8]} 15. Bxd4 {[%clk 0:02:27.2]}
15... Rc8 {[%clk 0:02:34.6]} 16. Qb4 {[%clk 0:02:21.4]} 16... O-O {[%clk
0:02:28.9]} 17. Kb1 {[%clk 0:02:20.3]} 17... Qc7 {[%clk 0:02:25.1]} 18. Rc1
{[%clk 0:02:14.6]} 18... d5 {[%clk 0:01:32.9]} 19. e5 {[%clk 0:02:07]} 19... Nh5
{[%clk 0:01:27.1]} 20. Nh3 {[%clk 0:01:51.9]} 20... Bxe5 {[%clk 0:01:18]} 21. c5
{[%clk 0:01:33.3]} 21... Bxh3 {[%clk 0:01:05.8]} 22. gxh3 {[%clk 0:01:31.4]}
22... Nf4 {[%clk 0:01:06.4]} 23. Rhe1 {[%clk 0:01:24]} 23... Bxd4 {[%clk
0:01:01.5]} 24. Qxd4 {[%clk 0:01:22.3]} 24... e5 {[%clk 0:01:02.4]} 25. Qd2
{[%clk 0:01:15.6]} 25... Qe7 {[%clk 0:00:59.7]} 26. Qb4 {[%clk 0:01:04.3]} 26...
b6 {[%clk 0:00:56.3]} 27. Bf1 {[%clk 0:01:01.4]} 27... Rc7 {[%clk 0:00:24.6]}
28. Qd2 {[%clk 0:00:39.8]} 28... bxc5 {[%clk 0:00:21.6]} 29. h4 {[%clk
0:00:35.8]} 29... h5 {[%clk 0:00:21.3]} 30. a3 {[%clk 0:00:33.8]} 30... Re8
{[%clk 0:00:20.3]} 31. Rc3 {[%clk 0:00:32.9]} 31... Qxh4 {[%clk 0:00:20.1]} 32.
Rce3 {[%clk 0:00:24.5]} 32... Qf6 {[%clk 0:00:20.1]} 33. h4 {[%clk 0:00:21.6]}
33... c4 {[%clk 0:00:18.1]} 34. Qa5 {[%clk 0:00:19.7]} 34... Rb7 {[%clk
0:00:16.5]} 35. Qa4 {[%clk 0:00:19]} 35... Reb8 {[%clk 0:00:16.4]} 36. b4 {[%clk
0:00:11.1]} 36... e4 {[%clk 0:00:10.7]} 37. fxe4 {[%clk 0:00:07.2]} 37... d4
{[%clk 0:00:11.4]} 38. e5 {[%clk 0:00:07.4]} 38... Qf5+ {[%clk 0:00:10.9]} 39.
Qc2 {[%clk 0:00:06.5]} 39... Qxc2+ {[%clk 0:00:10.8]} 40. Kxc2 {[%clk
0:00:06.3]} 40... dxe3 {[%clk 0:00:11.7]} 41. Rxe3 {[%clk 0:00:05.5]} 41... a5
{[%clk 0:00:12.3]} 42. Bxc4 {[%clk 0:00:04.1]} 42... axb4 {[%clk 0:00:12.1]} 43.
a4 {[%clk 0:00:04.2]} 43... Ne6 {[%clk 0:00:11.1]} 44. a5 {[%clk 0:00:02.9]}
44... b3+ {[%clk 0:00:11.4]} 45. Kb2 {[%clk 0:00:02.7]} 45... Nc5 {[%clk
0:00:11.9]} 46. a6 {[%clk 0:00:02.6]} 46... Ra7 {[%clk 0:00:12.4]} 47. e6 {[%clk
0:00:01.2]} 47... fxe6 {[%clk 0:00:11]} 0-1